{"text_format":"3","workbook":"xlsx","n_sheets":5,"sheets":["Επισκόπηση πάρτι","Λίστα καλεσμένων","Φαγητό και αναψυκτικά","Άλλα απαραίτητα","Διάταξη θέσεων"],"not_rendered":{"defined_names":9},"read":"whole","date_system":"1900"}

{"sheet":"Επισκόπηση πάρτι","index":0,"n_rows":21,"n_cols":8,"rows_kept":21,"merged":[[6,3,6,4],[6,5,6,6],[9,1,9,2]]}
[]
[]
[null,"Επισκόπηση πάρτι"]
[]
[]
[null,"ΕΚΔΗΛΩΣΗ",null,"ΣΥΝΟΨΗ ΚΑΛΕΣΜΕΝΩΝ",{"$nulls":3},{"$f":"\"ΕΠΙΒΕΒΑΙΩΣΕΙΣ ΣΕ ΕΚΚΡΕΜΟΤΗΤΑ:  \"&OutstandingRSVPs","v":"ΕΠΙΒΕΒΑΙΩΣΕΙΣ ΣΕ ΕΚΚΡΕΜΟΤΗΤΑ:  2"}]
[null,"Τα 75α γενέθλια της γιαγιάς",null,"ΕΠΙΣΚΟΠΗΣΗ ΟΣΩΝ ΑΠΑΝΤΗΣΑΝ",null,"ΚΟΣΤΟΣ ΑΝΑ ΚΑΛΕΣΜΕΝΟ",null,"ΠΟΣΟ ΠΡΟΫΠΟΛΟΓΙΣΜΟΥ"]
[{"$nulls":3},"Καλεσμένοι που επιβεβαίωσαν","Σύνολο επιβεβαιώσεων","Φαγητό","Άλλο","Σύνολο"]
[null,"ΗΜΕΡΟΜΗΝΙΑ",null,"Ενήλικες",{"$f":"SUMIF(GuestTable[ΘΑ ΠΑΡΕΥΡΕΘΕΙ;],\"=Ναι\",GuestTable[ΕΝΗΛΙΚΕΣ])","v":26},{"$f":"FoodTable[[#Totals],[ΚΟΣΤΟΣ ΑΝΑ ΕΝΗΛΙΚΑ]]","v":{"v":12.690089084110037,"d":"12.69 €"}},{"$f":"EssentialCostPerGuest","v":{"v":18.695652173913043,"d":"18.70 €"}},{"$f":"(AttendeeSummary[[#This Row],[Φαγητό]]+AttendeeSummary[[#This Row],[Άλλο]])*AdultTotal","v":{"v":816.0292727086002,"d":"816.03 €"}}]
[null,"2011-06-14",null,"Παιδιά",{"$f":"SUMIF(GuestTable[ΘΑ ΠΑΡΕΥΡΕΘΕΙ;],\"=Ναι\",GuestTable[ΠΑΙΔΙΑ])","v":20},{"$f":"FoodTable[[#Totals],[ΚΟΣΤΟΣ ΑΝΑ ΠΑΙΔΙ]]","v":{"v":7.252884190656953,"d":"7.25 €"}},{"$f":"EssentialCostPerGuest","v":{"v":18.695652173913043,"d":"18.70 €"}},{"$f":"(AttendeeSummary[[#This Row],[Φαγητό]]+AttendeeSummary[[#This Row],[Άλλο]])*ChildrenTotal","v":{"v":518.9707272914,"d":"518.97 €"}}]
[{"$nulls":3},"Σύνολο",{"$f":"SUBTOTAL(109,AttendeeSummary[Σύνολο επιβεβαιώσεων])","v":46},{"$f":"\"Avg.  \"&TEXT(SUBTOTAL(101,AttendeeSummary[Φαγητό]),\"#,##0.00 €\")","v":"Avg.  9,97149 €"},{"$f":"\"Avg.  \"&TEXT(SUBTOTAL(101,AttendeeSummary[Άλλο]),\"#,##0.00 €\")","v":"Avg.  18,69565 €"},{"$f":"SUBTOTAL(109,AttendeeSummary[Σύνολο])","v":{"v":1335,"d":"1,335.00 €"}}]
[null,"ΩΡΑ"]
[null,"2 μ.μ. έως 4 μ.μ."]
[]
[null,"ΤΟΠΟΘΕΣΙΑ",null,"ΣΥΝΟΨΗ ΠΡΟΫΠΟΛΟΓΙΣΜΟΥ"]
[null,"Το σπίτι της θείας Σοφίας",null,"ΣΤΟΙΧΕΙΟ","ΠΛΗΘΟΣ","ΠΟΣΟ ΠΡΟΫΠΟΛΟΓΙΣΜΟΥ","ΣΥΝΟΛΙΚΟ ΚΟΣΤΟΣ","ΔΙΑΦΟΡΑ"]
[{"$nulls":3},"Φαγητό και αναψυκτικά",{"$f":"COUNTA(FoodTable[ΣΤΟΙΧΕΙΟ ΦΑΓΗΤΟΥ Ή ΑΝΑΨΥΚΤΙΚΟΥ])","v":18},{"v":500,"d":"500.00 €"},{"$f":"FoodTable[[#Totals],[ΣΥΝΟΛΙΚΟ ΚΟΣΤΟΣ]]","v":{"v":475,"d":"475.00 €"}},{"$f":"BudgetOverview[[#This Row],[ΠΟΣΟ ΠΡΟΫΠΟΛΟΓΙΣΜΟΥ]]-BudgetOverview[[#This Row],[ΣΥΝΟΛΙΚΟ ΚΟΣΤΟΣ]]","v":{"v":25,"d":"25.00 €"}}]
[{"$nulls":3},{"$f":"Table1Header","v":"Εξοπλισμός και προμήθειες"},{"$f":"COUNTA(Table1Budget[Εξοπλισμός και προμήθειες])","v":7},{"v":400,"d":"400.00 €"},{"$f":"Table1Budget[[#Totals],[Κόστος]]","v":{"v":400,"d":"400.00 €"}},{"$f":"BudgetOverview[[#This Row],[ΠΟΣΟ ΠΡΟΫΠΟΛΟΓΙΣΜΟΥ]]-BudgetOverview[[#This Row],[ΣΥΝΟΛΙΚΟ ΚΟΣΤΟΣ]]","v":{"v":0,"d":"0.00 €"}}]
[{"$nulls":3},{"$f":"Table2Header","v":"Διακοσμητικά"},{"$f":"COUNTA(Table2Budget[Διακοσμητικά])","v":4},{"v":150,"d":"150.00 €"},{"$f":"Table2Budget[[#Totals],[Κόστος]]","v":{"v":175,"d":"175.00 €"}},{"$f":"BudgetOverview[[#This Row],[ΠΟΣΟ ΠΡΟΫΠΟΛΟΓΙΣΜΟΥ]]-BudgetOverview[[#This Row],[ΣΥΝΟΛΙΚΟ ΚΟΣΤΟΣ]]","v":{"v":-25,"d":"25.00 €"}}]
[{"$nulls":3},{"$f":"Table3Header","v":"Άλλο"},{"$f":"COUNTA(Table3Budget[Άλλο])","v":4},{"v":300,"d":"300.00 €"},{"$f":"Table3Budget[[#Totals],[Κόστος]]","v":{"v":285,"d":"285.00 €"}},{"$f":"BudgetOverview[[#This Row],[ΠΟΣΟ ΠΡΟΫΠΟΛΟΓΙΣΜΟΥ]]-BudgetOverview[[#This Row],[ΣΥΝΟΛΙΚΟ ΚΟΣΤΟΣ]]","v":{"v":15,"d":"15.00 €"}}]
[{"$nulls":3},"Σύνολο",{"$f":"SUBTOTAL(109,BudgetOverview[ΠΛΗΘΟΣ])","v":33},{"$f":"SUBTOTAL(109,BudgetOverview[ΠΟΣΟ ΠΡΟΫΠΟΛΟΓΙΣΜΟΥ])","v":{"v":1350,"d":"1,350.00 €"}},{"$f":"SUBTOTAL(109,BudgetOverview[ΣΥΝΟΛΙΚΟ ΚΟΣΤΟΣ])","v":{"v":1335,"d":"1,335.00 €"}},{"$f":"BudgetOverview[[#Totals],[ΠΟΣΟ ΠΡΟΫΠΟΛΟΓΙΣΜΟΥ]]-BudgetOverview[[#Totals],[ΣΥΝΟΛΙΚΟ ΚΟΣΤΟΣ]]","v":{"v":15,"d":"15.00 €"}}]

{"sheet":"Λίστα καλεσμένων","index":1,"n_rows":22,"n_cols":12,"rows_kept":22}
[]
[]
[null,"Λίστα καλεσμένων"]
[]
[]
[]
[null,"ΟΝΟΜΑ","ΔΙΕΥΘΥΝΣΗ","ΠΟΛΗ","ΝΟΜΟΣ","ΤΚ","ΤΗΛΕΦΩΝΟ","ΗΛ. ΤΑΧΥΔΡΟΜΕΙΟ","ΘΑ ΠΑΡΕΥΡΕΘΕΙ;","ΠΑΙΔΙΑ","ΕΝΗΛΙΚΕΣ","ΣΥΝΟΛΟ"]
[null,"Οικογένεια 1","Διεύθυνση 1","Πόλη 1","Νομός 1","ΤΚ 1","Τηλέφωνο 1","Email1","Όχι",2,2,{"$f":"SUM(GuestTable[[#This Row],[ΠΑΙΔΙΑ]:[ΕΝΗΛΙΚΕΣ]])","v":4}]
[null,"Οικογένεια 2","Διεύθυνση 2","Πόλη 2","Νομός 2","ΤΚ 2","Τηλέφωνο 2","Email2","Ναι",1,1,{"$f":"SUM(GuestTable[[#This Row],[ΠΑΙΔΙΑ]:[ΕΝΗΛΙΚΕΣ]])","v":2}]
[null,"Οικογένεια 3","Διεύθυνση 3","Πόλη 3","Νομός 3","ΤΚ 3","Τηλέφωνο 3","Email3","Ναι",3,3,{"$f":"SUM(GuestTable[[#This Row],[ΠΑΙΔΙΑ]:[ΕΝΗΛΙΚΕΣ]])","v":6}]
[null,"Οικογένεια 4","Διεύθυνση 4","Πόλη 4","Νομός 4","ΤΚ 4","Τηλέφωνο 4","Email4",null,null,2,{"$f":"SUM(GuestTable[[#This Row],[ΠΑΙΔΙΑ]:[ΕΝΗΛΙΚΕΣ]])","v":2}]
[null,"Οικογένεια 5","Διεύθυνση 5","Πόλη 5","Νομός 5","ΤΚ 5","Τηλέφωνο 5","Email5","Ναι",4,3,{"$f":"SUM(GuestTable[[#This Row],[ΠΑΙΔΙΑ]:[ΕΝΗΛΙΚΕΣ]])","v":7}]
[null,"Οικογένεια 6","Διεύθυνση 6","Πόλη 6","Νομός 6","ΤΚ 6","Τηλέφωνο 6","Email6","Ναι",2,2,{"$f":"SUM(GuestTable[[#This Row],[ΠΑΙΔΙΑ]:[ΕΝΗΛΙΚΕΣ]])","v":4}]
[null,"Οικογένεια 7","Διεύθυνση 7","Πόλη 7","Νομός 7","ΤΚ 7","Τηλέφωνο 7","Email7","Ναι",1,4,{"$f":"SUM(GuestTable[[#This Row],[ΠΑΙΔΙΑ]:[ΕΝΗΛΙΚΕΣ]])","v":5}]
[null,"Οικογένεια 8","Διεύθυνση 8","Πόλη 8","Νομός 8","ΤΚ 8","Τηλέφωνο 8","Email8","Όχι",5,3,{"$f":"SUM(GuestTable[[#This Row],[ΠΑΙΔΙΑ]:[ΕΝΗΛΙΚΕΣ]])","v":8}]
[null,"Οικογένεια 9","Διεύθυνση 9","Πόλη 9","Νομός 9","ΤΚ 9","Τηλέφωνο 9","Email9","Ναι",3,2,{"$f":"SUM(GuestTable[[#This Row],[ΠΑΙΔΙΑ]:[ΕΝΗΛΙΚΕΣ]])","v":5}]
[null,"Οικογένεια 10","Διεύθυνση 10","Πόλη 10","Νομός 10","ΤΚ 10","Τηλέφωνο 10","Email10","Ναι",null,4,{"$f":"SUM(GuestTable[[#This Row],[ΠΑΙΔΙΑ]:[ΕΝΗΛΙΚΕΣ]])","v":4}]
[null,"Οικογένεια 11","Διεύθυνση 11","Πόλη 11","Νομός 11","ΤΚ 11","Τηλέφωνο 11","Email11","Ναι",3,5,{"$f":"SUM(GuestTable[[#This Row],[ΠΑΙΔΙΑ]:[ΕΝΗΛΙΚΕΣ]])","v":8}]
[null,"Οικογένεια 12","Διεύθυνση 12","Πόλη 12","Νομός 12","ΤΚ 12","Τηλέφωνο 12","Email12","Όχι",2,3,{"$f":"SUM(GuestTable[[#This Row],[ΠΑΙΔΙΑ]:[ΕΝΗΛΙΚΕΣ]])","v":5}]
[null,"Οικογένεια 13","Διεύθυνση 13","Πόλη 13","Νομός 13","ΤΚ 13","Τηλέφωνο 13","Email13","Ναι",3,2,{"$f":"SUM(GuestTable[[#This Row],[ΠΑΙΔΙΑ]:[ΕΝΗΛΙΚΕΣ]])","v":5}]
[null,"Οικογένεια 14","Διεύθυνση 14","Πόλη 14","Νομός 14","ΤΚ 14","Τηλέφωνο 14","Email14","Όχι",null,1,{"$f":"SUM(GuestTable[[#This Row],[ΠΑΙΔΙΑ]:[ΕΝΗΛΙΚΕΣ]])","v":1}]
[null,"Οικογένεια 15","Διεύθυνση 15","Πόλη 15","Νομός 15","ΤΚ 15","Τηλέφωνο 15","Email15",null,null,2,{"$f":"SUM(GuestTable[[#This Row],[ΠΑΙΔΙΑ]:[ΕΝΗΛΙΚΕΣ]])","v":2}]

{"sheet":"Φαγητό και αναψυκτικά","index":2,"n_rows":25,"n_cols":10,"rows_kept":25}
[]
[]
[null,"Φαγητό και αναψυκτικά"]
[]
[null,"Πληκτρολογήστε το κόστος και τις εκτιμώμενες μερίδες για να υπολογίσετε αυτόματα τα συνολικά τεμάχια και το κόστος ανά μερίδα με βάση την συνολική προσέλευση"]
[null,"ΣΤΟΙΧΕΙΟ ΦΑΓΗΤΟΥ Ή ΑΝΑΨΥΚΤΙΚΟΥ","ΣΥΝΟΛΙΚΟ ΚΟΣΤΟΣ","ΜΕΡΙΔΑ ΑΝΑ ΠΑΙΔΙ","ΜΕΡΙΔΑ ΑΝΑ ΕΝΗΛΙΚΑ","ΣΥΝΟΛΙΚΕΣ ΜΕΡΙΔΕΣ","ΚΟΣΤΟΣ ΑΝΑ ΜΕΡΙΔΑ","ΚΟΣΤΟΣ ΑΝΑ ΠΑΙΔΙ","ΚΟΣΤΟΣ ΑΝΑ ΕΝΗΛΙΚΑ","ΣΗΜΕΙΩΣΕΙΣ"]
[null,"Αναψυκτικά",{"v":15,"d":"15.00 €"},0.5,2,{"$f":"(FoodTable[[#This Row],[ΜΕΡΙΔΑ ΑΝΑ ΠΑΙΔΙ]]*ChildrenTotal)+(FoodTable[[#This Row],[ΜΕΡΙΔΑ ΑΝΑ ΕΝΗΛΙΚΑ]]*AdultTotal)","v":62},{"$f":"IFERROR(FoodTable[[#This Row],[ΣΥΝΟΛΙΚΟ ΚΟΣΤΟΣ]]/FoodTable[[#This Row],[ΣΥΝΟΛΙΚΕΣ ΜΕΡΙΔΕΣ]],\"\")","v":{"v":0.24193548387096775,"d":"0.24 €"}},{"$f":"IFERROR(FoodTable[[#This Row],[ΚΟΣΤΟΣ ΑΝΑ ΜΕΡΙΔΑ]]*FoodTable[[#This Row],[ΜΕΡΙΔΑ ΑΝΑ ΠΑΙΔΙ]],\"\")","v":{"v":0.12096774193548387,"d":"0.12 €"}},{"$f":"IFERROR(FoodTable[[#This Row],[ΚΟΣΤΟΣ ΑΝΑ ΜΕΡΙΔΑ]]*FoodTable[[#This Row],[ΜΕΡΙΔΑ ΑΝΑ ΕΝΗΛΙΚΑ]],\"\")","v":{"v":0.4838709677419355,"d":"0.48 €"}},"2 φιάλες του λίτρου"]
[null,"Κουτιά χυμών",{"v":15,"d":"15.00 €"},2,0,{"$f":"(FoodTable[[#This Row],[ΜΕΡΙΔΑ ΑΝΑ ΠΑΙΔΙ]]*ChildrenTotal)+(FoodTable[[#This Row],[ΜΕΡΙΔΑ ΑΝΑ ΕΝΗΛΙΚΑ]]*AdultTotal)","v":40},{"$f":"IFERROR(FoodTable[[#This Row],[ΣΥΝΟΛΙΚΟ ΚΟΣΤΟΣ]]/FoodTable[[#This Row],[ΣΥΝΟΛΙΚΕΣ ΜΕΡΙΔΕΣ]],\"\")","v":{"v":0.375,"d":"0.38 €"}},{"$f":"IFERROR(FoodTable[[#This Row],[ΚΟΣΤΟΣ ΑΝΑ ΜΕΡΙΔΑ]]*FoodTable[[#This Row],[ΜΕΡΙΔΑ ΑΝΑ ΠΑΙΔΙ]],\"\")","v":{"v":0.75,"d":"0.75 €"}},{"$f":"IFERROR(FoodTable[[#This Row],[ΚΟΣΤΟΣ ΑΝΑ ΜΕΡΙΔΑ]]*FoodTable[[#This Row],[ΜΕΡΙΔΑ ΑΝΑ ΕΝΗΛΙΚΑ]],\"\")","v":{"v":0,"d":"0.00 €"}},"Μήλο και σταφύλι"]
[null,"Κρασί",{"v":50,"d":"50.00 €"},0,2,{"$f":"(FoodTable[[#This Row],[ΜΕΡΙΔΑ ΑΝΑ ΠΑΙΔΙ]]*ChildrenTotal)+(FoodTable[[#This Row],[ΜΕΡΙΔΑ ΑΝΑ ΕΝΗΛΙΚΑ]]*AdultTotal)","v":52},{"$f":"IFERROR(FoodTable[[#This Row],[ΣΥΝΟΛΙΚΟ ΚΟΣΤΟΣ]]/FoodTable[[#This Row],[ΣΥΝΟΛΙΚΕΣ ΜΕΡΙΔΕΣ]],\"\")","v":{"v":0.9615384615384616,"d":"0.96 €"}},{"$f":"IFERROR(FoodTable[[#This Row],[ΚΟΣΤΟΣ ΑΝΑ ΜΕΡΙΔΑ]]*FoodTable[[#This Row],[ΜΕΡΙΔΑ ΑΝΑ ΠΑΙΔΙ]],\"\")","v":{"v":0,"d":"0.00 €"}},{"$f":"IFERROR(FoodTable[[#This Row],[ΚΟΣΤΟΣ ΑΝΑ ΜΕΡΙΔΑ]]*FoodTable[[#This Row],[ΜΕΡΙΔΑ ΑΝΑ ΕΝΗΛΙΚΑ]],\"\")","v":{"v":1.9230769230769231,"d":"1.92 €"}}]
[null,"Τούρτα",{"v":75,"d":"75.00 €"},1,1,{"$f":"(FoodTable[[#This Row],[ΜΕΡΙΔΑ ΑΝΑ ΠΑΙΔΙ]]*ChildrenTotal)+(FoodTable[[#This Row],[ΜΕΡΙΔΑ ΑΝΑ ΕΝΗΛΙΚΑ]]*AdultTotal)","v":46},{"$f":"IFERROR(FoodTable[[#This Row],[ΣΥΝΟΛΙΚΟ ΚΟΣΤΟΣ]]/FoodTable[[#This Row],[ΣΥΝΟΛΙΚΕΣ ΜΕΡΙΔΕΣ]],\"\")","v":{"v":1.6304347826086956,"d":"1.63 €"}},{"$f":"IFERROR(FoodTable[[#This Row],[ΚΟΣΤΟΣ ΑΝΑ ΜΕΡΙΔΑ]]*FoodTable[[#This Row],[ΜΕΡΙΔΑ ΑΝΑ ΠΑΙΔΙ]],\"\")","v":{"v":1.6304347826086956,"d":"1.63 €"}},{"$f":"IFERROR(FoodTable[[#This Row],[ΚΟΣΤΟΣ ΑΝΑ ΜΕΡΙΔΑ]]*FoodTable[[#This Row],[ΜΕΡΙΔΑ ΑΝΑ ΕΝΗΛΙΚΑ]],\"\")","v":{"v":1.6304347826086956,"d":"1.63 €"}},"Παραγγελία από το τοπικό ζαχαροπλαστείο"]
[null,"Παγωτό",{"v":20,"d":"20.00 €"},1,1.5,{"$f":"(FoodTable[[#This Row],[ΜΕΡΙΔΑ ΑΝΑ ΠΑΙΔΙ]]*ChildrenTotal)+(FoodTable[[#This Row],[ΜΕΡΙΔΑ ΑΝΑ ΕΝΗΛΙΚΑ]]*AdultTotal)","v":59},{"$f":"IFERROR(FoodTable[[#This Row],[ΣΥΝΟΛΙΚΟ ΚΟΣΤΟΣ]]/FoodTable[[#This Row],[ΣΥΝΟΛΙΚΕΣ ΜΕΡΙΔΕΣ]],\"\")","v":{"v":0.3389830508474576,"d":"0.34 €"}},{"$f":"IFERROR(FoodTable[[#This Row],[ΚΟΣΤΟΣ ΑΝΑ ΜΕΡΙΔΑ]]*FoodTable[[#This Row],[ΜΕΡΙΔΑ ΑΝΑ ΠΑΙΔΙ]],\"\")","v":{"v":0.3389830508474576,"d":"0.34 €"}},{"$f":"IFERROR(FoodTable[[#This Row],[ΚΟΣΤΟΣ ΑΝΑ ΜΕΡΙΔΑ]]*FoodTable[[#This Row],[ΜΕΡΙΔΑ ΑΝΑ ΕΝΗΛΙΚΑ]],\"\")","v":{"v":0.5084745762711864,"d":"0.51 €"}}]
[null,"Κυπελάκια κρέμα",{"v":15,"d":"15.00 €"},1,0,{"$f":"(FoodTable[[#This Row],[ΜΕΡΙΔΑ ΑΝΑ ΠΑΙΔΙ]]*ChildrenTotal)+(FoodTable[[#This Row],[ΜΕΡΙΔΑ ΑΝΑ ΕΝΗΛΙΚΑ]]*AdultTotal)","v":20},{"$f":"IFERROR(FoodTable[[#This Row],[ΣΥΝΟΛΙΚΟ ΚΟΣΤΟΣ]]/FoodTable[[#This Row],[ΣΥΝΟΛΙΚΕΣ ΜΕΡΙΔΕΣ]],\"\")","v":{"v":0.75,"d":"0.75 €"}},{"$f":"IFERROR(FoodTable[[#This Row],[ΚΟΣΤΟΣ ΑΝΑ ΜΕΡΙΔΑ]]*FoodTable[[#This Row],[ΜΕΡΙΔΑ ΑΝΑ ΠΑΙΔΙ]],\"\")","v":{"v":0.75,"d":"0.75 €"}},{"$f":"IFERROR(FoodTable[[#This Row],[ΚΟΣΤΟΣ ΑΝΑ ΜΕΡΙΔΑ]]*FoodTable[[#This Row],[ΜΕΡΙΔΑ ΑΝΑ ΕΝΗΛΙΚΑ]],\"\")","v":{"v":0,"d":"0.00 €"}},"Αγορά συσκευασμένων: βανίλια και σοκολάτα"]
[null,"Γεμιστά μανιτάρια",{"v":32,"d":"32.00 €"},1,2,{"$f":"(FoodTable[[#This Row],[ΜΕΡΙΔΑ ΑΝΑ ΠΑΙΔΙ]]*ChildrenTotal)+(FoodTable[[#This Row],[ΜΕΡΙΔΑ ΑΝΑ ΕΝΗΛΙΚΑ]]*AdultTotal)","v":72},{"$f":"IFERROR(FoodTable[[#This Row],[ΣΥΝΟΛΙΚΟ ΚΟΣΤΟΣ]]/FoodTable[[#This Row],[ΣΥΝΟΛΙΚΕΣ ΜΕΡΙΔΕΣ]],\"\")","v":{"v":0.4444444444444444,"d":"0.44 €"}},{"$f":"IFERROR(FoodTable[[#This Row],[ΚΟΣΤΟΣ ΑΝΑ ΜΕΡΙΔΑ]]*FoodTable[[#This Row],[ΜΕΡΙΔΑ ΑΝΑ ΠΑΙΔΙ]],\"\")","v":{"v":0.4444444444444444,"d":"0.44 €"}},{"$f":"IFERROR(FoodTable[[#This Row],[ΚΟΣΤΟΣ ΑΝΑ ΜΕΡΙΔΑ]]*FoodTable[[#This Row],[ΜΕΡΙΔΑ ΑΝΑ ΕΝΗΛΙΚΑ]],\"\")","v":{"v":0.8888888888888888,"d":"0.89 €"}},"Μανιτάρια γεμιστά με τυρί και λουκάνικο"]
[null,"Πίτσα",{"v":22,"d":"22.00 €"},0,3,{"$f":"(FoodTable[[#This Row],[ΜΕΡΙΔΑ ΑΝΑ ΠΑΙΔΙ]]*ChildrenTotal)+(FoodTable[[#This Row],[ΜΕΡΙΔΑ ΑΝΑ ΕΝΗΛΙΚΑ]]*AdultTotal)","v":78},{"$f":"IFERROR(FoodTable[[#This Row],[ΣΥΝΟΛΙΚΟ ΚΟΣΤΟΣ]]/FoodTable[[#This Row],[ΣΥΝΟΛΙΚΕΣ ΜΕΡΙΔΕΣ]],\"\")","v":{"v":0.28205128205128205,"d":"0.28 €"}},{"$f":"IFERROR(FoodTable[[#This Row],[ΚΟΣΤΟΣ ΑΝΑ ΜΕΡΙΔΑ]]*FoodTable[[#This Row],[ΜΕΡΙΔΑ ΑΝΑ ΠΑΙΔΙ]],\"\")","v":{"v":0,"d":"0.00 €"}},{"$f":"IFERROR(FoodTable[[#This Row],[ΚΟΣΤΟΣ ΑΝΑ ΜΕΡΙΔΑ]]*FoodTable[[#This Row],[ΜΕΡΙΔΑ ΑΝΑ ΕΝΗΛΙΚΑ]],\"\")","v":{"v":0.8461538461538461,"d":"0.85 €"}},"Ντομάτα και βασιλικός "]
[null,"Καπνιστός σολομός",{"v":50,"d":"50.00 €"},1,2,{"$f":"(FoodTable[[#This Row],[ΜΕΡΙΔΑ ΑΝΑ ΠΑΙΔΙ]]*ChildrenTotal)+(FoodTable[[#This Row],[ΜΕΡΙΔΑ ΑΝΑ ΕΝΗΛΙΚΑ]]*AdultTotal)","v":72},{"$f":"IFERROR(FoodTable[[#This Row],[ΣΥΝΟΛΙΚΟ ΚΟΣΤΟΣ]]/FoodTable[[#This Row],[ΣΥΝΟΛΙΚΕΣ ΜΕΡΙΔΕΣ]],\"\")","v":{"v":0.6944444444444444,"d":"0.69 €"}},{"$f":"IFERROR(FoodTable[[#This Row],[ΚΟΣΤΟΣ ΑΝΑ ΜΕΡΙΔΑ]]*FoodTable[[#This Row],[ΜΕΡΙΔΑ ΑΝΑ ΠΑΙΔΙ]],\"\")","v":{"v":0.6944444444444444,"d":"0.69 €"}},{"$f":"IFERROR(FoodTable[[#This Row],[ΚΟΣΤΟΣ ΑΝΑ ΜΕΡΙΔΑ]]*FoodTable[[#This Row],[ΜΕΡΙΔΑ ΑΝΑ ΕΝΗΛΙΚΑ]],\"\")","v":{"v":1.3888888888888888,"d":"1.39 €"}}]
[null,"Κουλουράκια",{"v":20,"d":"20.00 €"},1,2,{"$f":"(FoodTable[[#This Row],[ΜΕΡΙΔΑ ΑΝΑ ΠΑΙΔΙ]]*ChildrenTotal)+(FoodTable[[#This Row],[ΜΕΡΙΔΑ ΑΝΑ ΕΝΗΛΙΚΑ]]*AdultTotal)","v":72},{"$f":"IFERROR(FoodTable[[#This Row],[ΣΥΝΟΛΙΚΟ ΚΟΣΤΟΣ]]/FoodTable[[#This Row],[ΣΥΝΟΛΙΚΕΣ ΜΕΡΙΔΕΣ]],\"\")","v":{"v":0.2777777777777778,"d":"0.28 €"}},{"$f":"IFERROR(FoodTable[[#This Row],[ΚΟΣΤΟΣ ΑΝΑ ΜΕΡΙΔΑ]]*FoodTable[[#This Row],[ΜΕΡΙΔΑ ΑΝΑ ΠΑΙΔΙ]],\"\")","v":{"v":0.2777777777777778,"d":"0.28 €"}},{"$f":"IFERROR(FoodTable[[#This Row],[ΚΟΣΤΟΣ ΑΝΑ ΜΕΡΙΔΑ]]*FoodTable[[#This Row],[ΜΕΡΙΔΑ ΑΝΑ ΕΝΗΛΙΚΑ]],\"\")","v":{"v":0.5555555555555556,"d":"0.56 €"}},"4 πακέτα - διάφορα"]
[null,"Τυρί κρέμα",{"v":10,"d":"10.00 €"},1,2,{"$f":"(FoodTable[[#This Row],[ΜΕΡΙΔΑ ΑΝΑ ΠΑΙΔΙ]]*ChildrenTotal)+(FoodTable[[#This Row],[ΜΕΡΙΔΑ ΑΝΑ ΕΝΗΛΙΚΑ]]*AdultTotal)","v":72},{"$f":"IFERROR(FoodTable[[#This Row],[ΣΥΝΟΛΙΚΟ ΚΟΣΤΟΣ]]/FoodTable[[#This Row],[ΣΥΝΟΛΙΚΕΣ ΜΕΡΙΔΕΣ]],\"\")","v":{"v":0.1388888888888889,"d":"0.14 €"}},{"$f":"IFERROR(FoodTable[[#This Row],[ΚΟΣΤΟΣ ΑΝΑ ΜΕΡΙΔΑ]]*FoodTable[[#This Row],[ΜΕΡΙΔΑ ΑΝΑ ΠΑΙΔΙ]],\"\")","v":{"v":0.1388888888888889,"d":"0.14 €"}},{"$f":"IFERROR(FoodTable[[#This Row],[ΚΟΣΤΟΣ ΑΝΑ ΜΕΡΙΔΑ]]*FoodTable[[#This Row],[ΜΕΡΙΔΑ ΑΝΑ ΕΝΗΛΙΚΑ]],\"\")","v":{"v":0.2777777777777778,"d":"0.28 €"}},"2 μεγάλα δοχεία"]
[null,"Κάπαρη",{"v":12,"d":"12.00 €"},1,2,{"$f":"(FoodTable[[#This Row],[ΜΕΡΙΔΑ ΑΝΑ ΠΑΙΔΙ]]*ChildrenTotal)+(FoodTable[[#This Row],[ΜΕΡΙΔΑ ΑΝΑ ΕΝΗΛΙΚΑ]]*AdultTotal)","v":72},{"$f":"IFERROR(FoodTable[[#This Row],[ΣΥΝΟΛΙΚΟ ΚΟΣΤΟΣ]]/FoodTable[[#This Row],[ΣΥΝΟΛΙΚΕΣ ΜΕΡΙΔΕΣ]],\"\")","v":{"v":0.16666666666666666,"d":"0.17 €"}},{"$f":"IFERROR(FoodTable[[#This Row],[ΚΟΣΤΟΣ ΑΝΑ ΜΕΡΙΔΑ]]*FoodTable[[#This Row],[ΜΕΡΙΔΑ ΑΝΑ ΠΑΙΔΙ]],\"\")","v":{"v":0.16666666666666666,"d":"0.17 €"}},{"$f":"IFERROR(FoodTable[[#This Row],[ΚΟΣΤΟΣ ΑΝΑ ΜΕΡΙΔΑ]]*FoodTable[[#This Row],[ΜΕΡΙΔΑ ΑΝΑ ΕΝΗΛΙΚΑ]],\"\")","v":{"v":0.3333333333333333,"d":"0.33 €"}},"3 βαζάκια"]
[null,"Φτερούγες κοτόπουλου",{"v":45,"d":"45.00 €"},2,4,{"$f":"(FoodTable[[#This Row],[ΜΕΡΙΔΑ ΑΝΑ ΠΑΙΔΙ]]*ChildrenTotal)+(FoodTable[[#This Row],[ΜΕΡΙΔΑ ΑΝΑ ΕΝΗΛΙΚΑ]]*AdultTotal)","v":144},{"$f":"IFERROR(FoodTable[[#This Row],[ΣΥΝΟΛΙΚΟ ΚΟΣΤΟΣ]]/FoodTable[[#This Row],[ΣΥΝΟΛΙΚΕΣ ΜΕΡΙΔΕΣ]],\"\")","v":{"v":0.3125,"d":"0.31 €"}},{"$f":"IFERROR(FoodTable[[#This Row],[ΚΟΣΤΟΣ ΑΝΑ ΜΕΡΙΔΑ]]*FoodTable[[#This Row],[ΜΕΡΙΔΑ ΑΝΑ ΠΑΙΔΙ]],\"\")","v":{"v":0.625,"d":"0.63 €"}},{"$f":"IFERROR(FoodTable[[#This Row],[ΚΟΣΤΟΣ ΑΝΑ ΜΕΡΙΔΑ]]*FoodTable[[#This Row],[ΜΕΡΙΔΑ ΑΝΑ ΕΝΗΛΙΚΑ]],\"\")","v":{"v":1.25,"d":"1.25 €"}},"Αγορά από το τοπικό ψητοπωλείο"]
[null,"Χούμους",{"v":10,"d":"10.00 €"},4,6,{"$f":"(FoodTable[[#This Row],[ΜΕΡΙΔΑ ΑΝΑ ΠΑΙΔΙ]]*ChildrenTotal)+(FoodTable[[#This Row],[ΜΕΡΙΔΑ ΑΝΑ ΕΝΗΛΙΚΑ]]*AdultTotal)","v":236},{"$f":"IFERROR(FoodTable[[#This Row],[ΣΥΝΟΛΙΚΟ ΚΟΣΤΟΣ]]/FoodTable[[#This Row],[ΣΥΝΟΛΙΚΕΣ ΜΕΡΙΔΕΣ]],\"\")","v":{"v":0.0423728813559322,"d":"0.04 €"}},{"$f":"IFERROR(FoodTable[[#This Row],[ΚΟΣΤΟΣ ΑΝΑ ΜΕΡΙΔΑ]]*FoodTable[[#This Row],[ΜΕΡΙΔΑ ΑΝΑ ΠΑΙΔΙ]],\"\")","v":{"v":0.1694915254237288,"d":"0.17 €"}},{"$f":"IFERROR(FoodTable[[#This Row],[ΚΟΣΤΟΣ ΑΝΑ ΜΕΡΙΔΑ]]*FoodTable[[#This Row],[ΜΕΡΙΔΑ ΑΝΑ ΕΝΗΛΙΚΑ]],\"\")","v":{"v":0.2542372881355932,"d":"0.25 €"}},"Παρασκευή από την προηγούμενη"]
[null,"Πατατάκια με παρμεζάνα",{"v":14,"d":"14.00 €"},4,6,{"$f":"(FoodTable[[#This Row],[ΜΕΡΙΔΑ ΑΝΑ ΠΑΙΔΙ]]*ChildrenTotal)+(FoodTable[[#This Row],[ΜΕΡΙΔΑ ΑΝΑ ΕΝΗΛΙΚΑ]]*AdultTotal)","v":236},{"$f":"IFERROR(FoodTable[[#This Row],[ΣΥΝΟΛΙΚΟ ΚΟΣΤΟΣ]]/FoodTable[[#This Row],[ΣΥΝΟΛΙΚΕΣ ΜΕΡΙΔΕΣ]],\"\")","v":{"v":0.059322033898305086,"d":"0.06 €"}},{"$f":"IFERROR(FoodTable[[#This Row],[ΚΟΣΤΟΣ ΑΝΑ ΜΕΡΙΔΑ]]*FoodTable[[#This Row],[ΜΕΡΙΔΑ ΑΝΑ ΠΑΙΔΙ]],\"\")","v":{"v":0.23728813559322035,"d":"0.24 €"}},{"$f":"IFERROR(FoodTable[[#This Row],[ΚΟΣΤΟΣ ΑΝΑ ΜΕΡΙΔΑ]]*FoodTable[[#This Row],[ΜΕΡΙΔΑ ΑΝΑ ΕΝΗΛΙΚΑ]],\"\")","v":{"v":0.3559322033898305,"d":"0.36 €"}},"Παρασκευή από την προηγούμενη"]
[null,"Διάφορα λαχανικά",{"v":30,"d":"30.00 €"},4,10,{"$f":"(FoodTable[[#This Row],[ΜΕΡΙΔΑ ΑΝΑ ΠΑΙΔΙ]]*ChildrenTotal)+(FoodTable[[#This Row],[ΜΕΡΙΔΑ ΑΝΑ ΕΝΗΛΙΚΑ]]*AdultTotal)","v":340},{"$f":"IFERROR(FoodTable[[#This Row],[ΣΥΝΟΛΙΚΟ ΚΟΣΤΟΣ]]/FoodTable[[#This Row],[ΣΥΝΟΛΙΚΕΣ ΜΕΡΙΔΕΣ]],\"\")","v":{"v":0.08823529411764706,"d":"0.09 €"}},{"$f":"IFERROR(FoodTable[[#This Row],[ΚΟΣΤΟΣ ΑΝΑ ΜΕΡΙΔΑ]]*FoodTable[[#This Row],[ΜΕΡΙΔΑ ΑΝΑ ΠΑΙΔΙ]],\"\")","v":{"v":0.35294117647058826,"d":"0.35 €"}},{"$f":"IFERROR(FoodTable[[#This Row],[ΚΟΣΤΟΣ ΑΝΑ ΜΕΡΙΔΑ]]*FoodTable[[#This Row],[ΜΕΡΙΔΑ ΑΝΑ ΕΝΗΛΙΚΑ]],\"\")","v":{"v":0.8823529411764707,"d":"0.88 €"}},"Καρότα, σέλινο, μπρόκολο, κουνουπίδι, κόκκινες και πράσινες πιπεριές"]
[null,"Τυροκροκέτες",{"v":15,"d":"15.00 €"},5,10,{"$f":"(FoodTable[[#This Row],[ΜΕΡΙΔΑ ΑΝΑ ΠΑΙΔΙ]]*ChildrenTotal)+(FoodTable[[#This Row],[ΜΕΡΙΔΑ ΑΝΑ ΕΝΗΛΙΚΑ]]*AdultTotal)","v":360},{"$f":"IFERROR(FoodTable[[#This Row],[ΣΥΝΟΛΙΚΟ ΚΟΣΤΟΣ]]/FoodTable[[#This Row],[ΣΥΝΟΛΙΚΕΣ ΜΕΡΙΔΕΣ]],\"\")","v":{"v":0.041666666666666664,"d":"0.04 €"}},{"$f":"IFERROR(FoodTable[[#This Row],[ΚΟΣΤΟΣ ΑΝΑ ΜΕΡΙΔΑ]]*FoodTable[[#This Row],[ΜΕΡΙΔΑ ΑΝΑ ΠΑΙΔΙ]],\"\")","v":{"v":0.20833333333333331,"d":"0.21 €"}},{"$f":"IFERROR(FoodTable[[#This Row],[ΚΟΣΤΟΣ ΑΝΑ ΜΕΡΙΔΑ]]*FoodTable[[#This Row],[ΜΕΡΙΔΑ ΑΝΑ ΕΝΗΛΙΚΑ]],\"\")","v":{"v":0.41666666666666663,"d":"0.42 €"}},"Διάφορα: τυρί κρέμα, πικάντικο τυρί με καρύδια"]
[null,"Κρακεράκια",{"v":25,"d":"25.00 €"},5,10,{"$f":"(FoodTable[[#This Row],[ΜΕΡΙΔΑ ΑΝΑ ΠΑΙΔΙ]]*ChildrenTotal)+(FoodTable[[#This Row],[ΜΕΡΙΔΑ ΑΝΑ ΕΝΗΛΙΚΑ]]*AdultTotal)","v":360},{"$f":"IFERROR(FoodTable[[#This Row],[ΣΥΝΟΛΙΚΟ ΚΟΣΤΟΣ]]/FoodTable[[#This Row],[ΣΥΝΟΛΙΚΕΣ ΜΕΡΙΔΕΣ]],\"\")","v":{"v":0.06944444444444445,"d":"0.07 €"}},{"$f":"IFERROR(FoodTable[[#This Row],[ΚΟΣΤΟΣ ΑΝΑ ΜΕΡΙΔΑ]]*FoodTable[[#This Row],[ΜΕΡΙΔΑ ΑΝΑ ΠΑΙΔΙ]],\"\")","v":{"v":0.3472222222222222,"d":"0.35 €"}},{"$f":"IFERROR(FoodTable[[#This Row],[ΚΟΣΤΟΣ ΑΝΑ ΜΕΡΙΔΑ]]*FoodTable[[#This Row],[ΜΕΡΙΔΑ ΑΝΑ ΕΝΗΛΙΚΑ]],\"\")","v":{"v":0.6944444444444444,"d":"0.69 €"}},"Διάφορα"]
[null,"Σύνολο",{"$f":"SUBTOTAL(109,FoodTable[ΣΥΝΟΛΙΚΟ ΚΟΣΤΟΣ])","v":{"v":475,"d":"475.00 €"}},{"$f":"SUBTOTAL(109,FoodTable[ΜΕΡΙΔΑ ΑΝΑ ΠΑΙΔΙ])","v":34.5},{"$f":"SUBTOTAL(109,FoodTable[ΜΕΡΙΔΑ ΑΝΑ ΕΝΗΛΙΚΑ])","v":65.5},{"$f":"SUBTOTAL(109,FoodTable[ΣΥΝΟΛΙΚΕΣ ΜΕΡΙΔΕΣ])","v":2393},{"$f":"SUBTOTAL(109,FoodTable[ΚΟΣΤΟΣ ΑΝΑ ΜΕΡΙΔΑ])","v":{"v":6.915706603622084,"d":"6.92 €"}},{"$f":"SUBTOTAL(109,FoodTable[ΚΟΣΤΟΣ ΑΝΑ ΠΑΙΔΙ])","v":{"v":7.252884190656953,"d":"7.25 €"}},{"$f":"SUBTOTAL(109,FoodTable[ΚΟΣΤΟΣ ΑΝΑ ΕΝΗΛΙΚΑ])","v":{"v":12.690089084110037,"d":"12.69 €"}}]

{"sheet":"Άλλα απαραίτητα","index":3,"n_rows":30,"n_cols":5,"rows_kept":30,"merged":[[14,1,14,4],[22,1,22,4]]}
[]
[]
[null,"Άλλα απαραίτητα"]
[]
[]
[null,"Εξοπλισμός και προμήθειες","Κόστος","Αγοράστηκε","Σημειώσεις"]
[null,"Ενοικίαση χώρου/αίθουσας",{"v":250,"d":"250.00 €"},"Ναι"]
[null,"Τραπεζομάντηλα",{"v":30,"d":"30.00 €"},"Ναι","Ενοικίαση"]
[null,"Τραπέζια και καρέκλες",{"v":0,"d":"0.00 €"},null,"Περιλαμβάνεται στην ενοικίαση του χώρου"]
[null,"Χαρτοπετσέτες αναψυκτικών",{"v":25,"d":"25.00 €"}]
[null,"Χαρτοπετσέτες δείπνου",{"v":20,"d":"20.00 €"},null,"Ενοικίαση"]
[null,"Σερβίρισμα τραπεζιών",{"v":50,"d":"50.00 €"},null,"Ενοικίαση"]
[null,"Γυαλικά",{"v":25,"d":"25.00 €"},null,"Ενοικίαση"]
[null,"Σύνολο",{"$f":"SUBTOTAL(109,Table1Budget[Κόστος])","v":{"v":400,"d":"400.00 €"}}]
[]
[]
[null,"Διακοσμητικά","Κόστος","Αγοράστηκε","Σημειώσεις"]
[null,"Μπαλόνια",{"v":25,"d":"25.00 €"}]
[null,"Φιάλη με ήλιο",{"v":50,"d":"50.00 €"},null,"Ενοικίαση"]
[null,"Διακοσμητικά τραπεζιού",{"v":100,"d":"100.00 €"},"Ναι","10 συνολικά"]
[null,"Γυάλινα βάζα",{"v":0,"d":"0.00 €"},null,"Δανεικά από τη Μαρία"]
[null,"Σύνολο",{"$f":"SUBTOTAL(109,Table2Budget[Κόστος])","v":{"v":175,"d":"175.00 €"}}]
[]
[]
[null,"Άλλο","Κόστος","Αγοράστηκε","Σημειώσεις"]
[null,"Προσκλήσεις",{"v":50,"d":"50.00 €"},"Ναι"]
[null,"Ταχυδρομικά",{"v":60,"d":"60.00 €"},"Ναι"]
[null,"Φωτογράφος",{"v":125,"d":"125.00 €"},null,"2 ώρες (2 μ.μ. - 4 μ.μ.)"]
[null,"Αναμνηστικά από το πάρτι",{"v":50,"d":"50.00 €"}]
[null,"Σύνολο",{"$f":"SUBTOTAL(109,Table3Budget[Κόστος])","v":{"v":285,"d":"285.00 €"}}]

{"sheet":"Διάταξη θέσεων","index":4,"n_rows":43,"n_cols":34,"rows_kept":43,"merged":[[35,0,35,17],[35,19,35,33],[36,19,36,33]]}
["Διάταξη θέσεων"]
{"$rows_empty":33}
[{"$nulls":33},"*1 τετράγωνο= περίπου 30x30 εκατοστά"]
["Σημειώσεις",{"$nulls":18},{"$f":"\" Σύνολο καλεσμένων που επιβεβαίωσαν:  \"&ConfirmedGuests","v":" Σύνολο καλεσμένων που επιβεβαίωσαν:  46"}]
[{"$nulls":19},"Μπορείτε να χρησιμοποιήσετε οποιαδήποτε από τις παρακάτω διατάξεις τραπεζιών:"]
[{"$nulls":20},{"$f":"ROUNDUP(ConfirmedGuests/6,0)&\" ροτόντες διαμέτρου 120 εκατοστών (6 θέσεις)\"","v":"8 ροτόντες διαμέτρου 120 εκατοστών (6 θέσεις)"}]
[{"$nulls":20},{"$f":"ROUNDUP(ConfirmedGuests/8,0) &\"ροτόντες διαμέτρου 150 εκατοστών (8 θέσεις)\"","v":"6ροτόντες διαμέτρου 150 εκατοστών (8 θέσεις)"}]
[{"$nulls":20},{"$f":"ROUNDUP(ConfirmedGuests/10,0)&\" ροτόντες διαμέτρου 170 εκατοστών (10 θέσεις)\"","v":"5 ροτόντες διαμέτρου 170 εκατοστών (10 θέσεις)"}]
[{"$nulls":20},{"$f":"ROUNDUP(ConfirmedGuests/6,0)& \" ορθογώνια τραπέζια 70 x 150 εκατοστά (6 θέσεις)\"","v":"8 ορθογώνια τραπέζια 70 x 150 εκατοστά (6 θέσεις)"}]
[{"$nulls":20},{"$f":"ROUNDUP(ConfirmedGuests/8,0)&\" ορθογώνια τραπέζια 70 x 200 εκατοστά (8 θέσεις)\"","v":"6 ορθογώνια τραπέζια 70 x 200 εκατοστά (8 θέσεις)"}]
[{"$nulls":19},"(Επιθυμητή απόσταση μεταξύ των τραπεζιών: 1 μέτρο)"]